[Event "*** Titled Tuesday Blitz"]
[Site "Chess.com"]
[Date "2020.12.01"]
[Round "4"]
[White "Skatchkov_V"]
[Black "anon102030"]
[Result "0-1"]
[WhiteElo "2498"]
[BlackElo "2726"]
[TimeControl "180+1"]
[EndTime "10:37:08 PST"]
[Termination "anon102030 won by checkmate"]

1. d4 {[%clk 0:03:00.5]} 1... Nf6 {[%clk 0:02:59.9]} 2. c4 {[%clk 0:03:00.5]}
2... e5 {[%clk 0:02:59.7]} 3. dxe5 {[%clk 0:02:57.9]} 3... Ng4 {[%clk
0:03:00.3]} 4. Nh3 {[%clk 0:02:54.5]} 4... Nxe5 {[%clk 0:02:58.8]} 5. Nf4 {[%clk
0:02:53.5]} 5... Nbc6 {[%clk 0:02:57.5]} 6. Nd2 {[%clk 0:02:39.8]} 6... Ng6
{[%clk 0:02:46.8]} 7. Nd5 {[%clk 0:02:38]} 7... Bc5 {[%clk 0:02:45.7]} 8. g3
{[%clk 0:02:36.6]} 8... d6 {[%clk 0:02:41.8]} 9. Bg2 {[%clk 0:02:36.9]} 9... O-O
{[%clk 0:02:41.3]} 10. O-O {[%clk 0:02:35.9]} 10... Re8 {[%clk 0:02:39.2]} 11.
a3 {[%clk 0:02:26.3]} 11... a5 {[%clk 0:02:38.1]} 12. Nf3 {[%clk 0:02:22.8]}
12... Nce5 {[%clk 0:02:35.1]} 13. Nd4 {[%clk 0:02:21.5]} 13... Nxc4 {[%clk
0:02:31.7]} 14. Nb5 {[%clk 0:01:46.8]} 14... c6 {[%clk 0:02:11.8]} 15. Nbc7
{[%clk 0:01:46.1]} 15... cxd5 {[%clk 0:02:12.1]} 16. Nxa8 {[%clk 0:01:45.9]}
16... Be6 {[%clk 0:02:03.8]} 17. b4 {[%clk 0:01:42.5]} 17... Ba7 {[%clk
0:01:48.5]} 18. Bxd5 {[%clk 0:01:41]} 18... Qxa8 {[%clk 0:01:42]} 19. Bxe6
{[%clk 0:01:37.2]} 19... Rxe6 {[%clk 0:01:41.5]} 20. Qd5 {[%clk 0:01:36.5]}
20... Nce5 {[%clk 0:01:29.2]} 21. Qxa5 {[%clk 0:01:22.6]} 21... Nc6 {[%clk
0:01:27.8]} 22. Qd5 {[%clk 0:01:20.1]} 22... Rxe2 {[%clk 0:01:25.3]} 23. Qxd6
{[%clk 0:01:07.3]} 23... Qc8 {[%clk 0:01:21]} 24. Be3 {[%clk 0:00:58.4]} 24...
Bxe3 {[%clk 0:01:13]} 25. fxe3 {[%clk 0:00:58.5]} 25... Qh3 {[%clk 0:01:00.4]}
26. Rf2 {[%clk 0:00:58.1]} 26... Rxf2 {[%clk 0:01:00.3]} 27. Kxf2 {[%clk
0:00:59]} 27... Qxh2+ {[%clk 0:01:01]} 28. Kf3 {[%clk 0:00:57.2]} 28... Nge5+
{[%clk 0:00:58.6]} 29. Ke4 {[%clk 0:00:55]} 29... Qg2+ {[%clk 0:00:43.8]} 30.
Kf5 {[%clk 0:00:52.1]} 30... Qf3+ {[%clk 0:00:43.1]} 31. Kg5 {[%clk 0:00:51.7]}
31... h6+ {[%clk 0:00:41.6]} 32. Kh4 {[%clk 0:00:51.2]} 32... Qg4# {[%clk
0:00:41.1]} 0-1

[Event "*** Titled Tuesday Blitz"]
[Site "Chess.com"]
[Date "2020.12.01"]
[Round "4"]
[White "Nachsueb"]
[Black "Tactictic"]
[Result "1-0"]
[WhiteElo "2209"]
[BlackElo "2397"]
[TimeControl "180+1"]
[EndTime "10:37:10 PST"]
[Termination "Nachsueb won by checkmate"]

1. d4 {[%clk 0:02:58.9]} 1... f5 {[%clk 0:02:58.3]} 2. Nc3 {[%clk 0:02:58.1]}
2... Nf6 {[%clk 0:02:44.1]} 3. Bg5 {[%clk 0:02:57.7]} 3... d5 {[%clk 0:02:35.7]}
4. f3 {[%clk 0:02:57.5]} 4... Nc6 {[%clk 0:02:27.3]} 5. e4 {[%clk 0:02:46.2]}
5... fxe4 {[%clk 0:01:39]} 6. fxe4 {[%clk 0:02:34.9]} 6... Bg4 {[%clk
0:01:38.6]} 7. Be2 {[%clk 0:02:21.7]} 7... Bxe2 {[%clk 0:01:30.4]} 8. Ngxe2
{[%clk 0:02:22.6]} 8... dxe4 {[%clk 0:01:30.2]} 9. d5 {[%clk 0:02:19.7]} 9...
Ne5 {[%clk 0:01:30.2]} 10. O-O {[%clk 0:02:07.1]} 10... Qd7 {[%clk 0:01:25.5]}
11. Nf4 {[%clk 0:01:50.2]} 11... Nfg4 {[%clk 0:01:18.4]} 12. Ne6 {[%clk
0:01:45.1]} 12... c6 {[%clk 0:01:11]} 13. Bf4 {[%clk 0:01:30.3]} 13... h6 {[%clk
0:00:22.5]} 14. Bxe5 {[%clk 0:01:27.7]} 14... Nxe5 {[%clk 0:00:21.9]} 15. Qh5+
{[%clk 0:01:26]} 15... g6 {[%clk 0:00:22.1]} 16. Qxe5 {[%clk 0:01:25.8]} 16...
Rg8 {[%clk 0:00:23]} 17. Rxf8+ {[%clk 0:01:09.8]} 17... Rxf8 {[%clk 0:00:22.1]}
18. Nxf8 {[%clk 0:01:10.4]} 18... Qg4 {[%clk 0:00:20.2]} 19. Ne6 {[%clk
0:01:03.2]} 19... Kf7 {[%clk 0:00:15.7]} 20. Rf1+ {[%clk 0:01:01.9]} 20... Ke8
{[%clk 0:00:14.7]} 21. Rf8+ {[%clk 0:00:54.4]} 21... Kd7 {[%clk 0:00:14.6]} 22.
Qc7# {[%clk 0:00:55.3]} 1-0

[Event "*** Titled Tuesday Blitz"]
[Site "Chess.com"]
[Date "2020.12.01"]
[Round "4"]
[White "ondoko"]
[Black "ErikRonka"]
[Result "0-1"]
[WhiteElo "2110"]
[BlackElo "2380"]
[TimeControl "180+1"]
[EndTime "10:37:10 PST"]
[Termination "ErikRonka won on time"]

1. e4 {[%clk 0:03:00.9]} 1... d5 {[%clk 0:02:58]} 2. exd5 {[%clk 0:03:00.6]}
2... Qxd5 {[%clk 0:02:58.9]} 3. Nc3 {[%clk 0:03:00.2]} 3... Qd6 {[%clk
0:02:58.2]} 4. d4 {[%clk 0:02:59.7]} 4... Nf6 {[%clk 0:02:58.6]} 5. Nf3 {[%clk
0:02:59.7]} 5... a6 {[%clk 0:02:57.2]} 6. g3 {[%clk 0:02:55.1]} 6... Bg4 {[%clk
0:02:55.6]} 7. Bg2 {[%clk 0:02:52.8]} 7... Nc6 {[%clk 0:02:55.2]} 8. O-O {[%clk
0:02:39.3]} 8... O-O-O {[%clk 0:02:53.3]} 9. Bf4 {[%clk 0:02:38.5]} 9... Qb4
{[%clk 0:02:51]} 10. Ne2 {[%clk 0:01:29.7]} 10... Bxf3 {[%clk 0:02:18.8]} 11.
Bxf3 {[%clk 0:01:19.5]} 11... Nxd4 {[%clk 0:02:19.3]} 12. Nxd4 {[%clk
0:01:18.3]} 12... Qxd4 {[%clk 0:02:17.8]} 13. Qe2 {[%clk 0:01:15.4]} 13... e6
{[%clk 0:01:49.5]} 14. Rad1 {[%clk 0:01:11.8]} 14... Qb6 {[%clk 0:01:48]} 15.
Rxd8+ {[%clk 0:00:59.4]} 15... Kxd8 {[%clk 0:01:48.9]} 16. c4 {[%clk 0:00:58.1]}
16... Be7 {[%clk 0:01:42.2]} 17. a3 {[%clk 0:00:53.7]} 17... Kc8 {[%clk
0:01:40.1]} 18. b4 {[%clk 0:00:53.8]} 18... Rd8 {[%clk 0:01:38]} 19. Be3 {[%clk
0:00:35.2]} 19... Qd6 {[%clk 0:01:35.3]} 20. Qb2 {[%clk 0:00:27.5]} 20... Qd3
{[%clk 0:01:24.6]} 21. c5 {[%clk 0:00:15.3]} 21... Nd5 {[%clk 0:01:19.5]} 22.
Rd1 {[%clk 0:00:08.9]} 22... Qg6 {[%clk 0:01:17.7]} 23. Bc1 {[%clk 0:00:04.7]}
23... Bf6 {[%clk 0:01:15.2]} 24. Qb3 {[%clk 0:00:04.4]} 24... Nc3 {[%clk
0:01:13]} 25. Rxd8+ {[%clk 0:00:04.2]} 25... Kxd8 {[%clk 0:01:12.4]} 0-1

[Event "*** Titled Tuesday Blitz"]
[Site "Chess.com"]
[Date "2020.12.01"]
[Round "4"]
[White "maximnovik"]
[Black "jefferyx"]
[Result "0-1"]
[WhiteElo "2550"]
[BlackElo "2910"]
[TimeControl "180+1"]
[EndTime "10:37:11 PST"]
[Termination "jefferyx won on time"]

1. d4 {[%clk 0:03:00.9]} 1... Nf6 {[%clk 0:03:00.2]} 2. Bg5 {[%clk 0:03:00.2]}
2... c5 {[%clk 0:02:59.1]} 3. Bxf6 {[%clk 0:03:00]} 3... gxf6 {[%clk 0:03:00]}
4. d5 {[%clk 0:03:00.2]} 4... Qb6 {[%clk 0:03:00.4]} 5. Qc1 {[%clk 0:03:00.4]}
5... f5 {[%clk 0:03:00.9]} 6. c4 {[%clk 0:02:59.7]} 6... d6 {[%clk 0:03:01.3]}
7. Nc3 {[%clk 0:03:00]} 7... Nd7 {[%clk 0:03:01.7]} 8. e3 {[%clk 0:03:00.3]}
8... Ne5 {[%clk 0:02:58.5]} 9. Qc2 {[%clk 0:02:59.5]} 9... Bd7 {[%clk
0:02:53.1]} 10. Nh3 {[%clk 0:02:59.4]} 10... h5 {[%clk 0:02:36.1]} 11. Be2
{[%clk 0:02:58.7]} 11... h4 {[%clk 0:02:35]} 12. O-O {[%clk 0:02:58.6]} 12...
Bh6 {[%clk 0:02:30.6]} 13. a3 {[%clk 0:02:50.6]} 13... O-O-O {[%clk 0:02:30.5]}
14. b4 {[%clk 0:02:43.2]} 14... Rdg8 {[%clk 0:02:29.7]} 15. Rab1 {[%clk
0:02:03.2]} 15... Rg7 {[%clk 0:02:26.6]} 16. Kh1 {[%clk 0:01:46]} 16... Rhg8
{[%clk 0:02:24]} 17. Rg1 {[%clk 0:01:42.8]} 17... Ng4 {[%clk 0:02:11.5]} 18. Na4
{[%clk 0:01:33.7]} 18... Qa6 {[%clk 0:01:54.1]} 19. Nb2 {[%clk 0:01:17.7]} 19...
Nxe3 {[%clk 0:01:49.7]} 20. fxe3 {[%clk 0:01:15.7]} 20... Bxe3 {[%clk
0:01:50.6]} 21. Nd3 {[%clk 0:01:08.8]} 21... f4 {[%clk 0:01:32.5]} 22. Ndxf4
{[%clk 0:00:58.2]} 22... Bxg1 {[%clk 0:01:24.3]} 23. Rxg1 {[%clk 0:00:56]} 23...
Qxa3 {[%clk 0:01:24.6]} 24. Nf2 {[%clk 0:00:29.4]} 24... Qe3 {[%clk 0:01:19.5]}
25. N2d3 {[%clk 0:00:23]} 25... h3 {[%clk 0:01:15.7]} 26. Bf3 {[%clk 0:00:10.8]}
26... Qxf3 {[%clk 0:01:13.8]} 0-1

[Event "*** Titled Tuesday Blitz"]
[Site "Chess.com"]
[Date "2020.12.01"]
[Round "4"]
[White "DanielDardha2005"]
[Black "Arseniy_Nesterov"]
[Result "0-1"]
[WhiteElo "2628"]
[BlackElo "2851"]
[TimeControl "180+1"]
[EndTime "10:37:17 PST"]
[Termination "Arseniy_Nesterov won by resignation"]

1. d4 {[%clk 0:03:00.9]} 1... d5 {[%clk 0:02:59.5]} 2. c4 {[%clk 0:03:00]} 2...
c6 {[%clk 0:02:59.9]} 3. e3 {[%clk 0:02:57]} 3... Nf6 {[%clk 0:02:59.3]} 4. Nf3
{[%clk 0:02:53.7]} 4... Bg4 {[%clk 0:02:59]} 5. Be2 {[%clk 0:02:48]} 5... e6
{[%clk 0:02:56.7]} 6. O-O {[%clk 0:02:46.9]} 6... Bd6 {[%clk 0:02:47.9]} 7. b3
{[%clk 0:02:46.1]} 7... O-O {[%clk 0:02:47.7]} 8. Bb2 {[%clk 0:02:45.9]} 8...
Nbd7 {[%clk 0:02:46.7]} 9. Nbd2 {[%clk 0:02:45.8]} 9... a5 {[%clk 0:02:43.6]}
10. a3 {[%clk 0:02:45.3]} 10... Qe7 {[%clk 0:02:29.8]} 11. h3 {[%clk 0:02:44.1]}
11... Bh5 {[%clk 0:02:27.8]} 12. Ne5 {[%clk 0:02:37.5]} 12... Bxe2 {[%clk
0:02:27.6]} 13. Qxe2 {[%clk 0:02:38.4]} 13... c5 {[%clk 0:02:06.6]} 14. Nxd7
{[%clk 0:02:36.5]} 14... Nxd7 {[%clk 0:02:06.1]} 15. cxd5 {[%clk 0:02:35.6]}
15... exd5 {[%clk 0:02:06.1]} 16. dxc5 {[%clk 0:02:36]} 16... Nxc5 {[%clk
0:02:03.2]} 17. Rfd1 {[%clk 0:02:25.4]} 17... Be5 {[%clk 0:01:50.9]} 18. Nf3
{[%clk 0:02:21.4]} 18... Bxb2 {[%clk 0:01:47.3]} 19. Qxb2 {[%clk 0:02:22.3]}
19... Rfd8 {[%clk 0:01:46.7]} 20. Nd4 {[%clk 0:02:19.2]} 20... g6 {[%clk
0:01:44.3]} 21. b4 {[%clk 0:02:15.3]} 21... axb4 {[%clk 0:01:41.4]} 22. axb4
{[%clk 0:02:14.3]} 22... Rxa1 {[%clk 0:01:38.2]} 23. Qxa1 {[%clk 0:02:12.8]}
23... Ne4 {[%clk 0:01:37.7]} 24. Qa5 {[%clk 0:02:06.9]} 24... Qf6 {[%clk
0:01:33.3]} 25. Nf3 {[%clk 0:02:02.7]} 25... b6 {[%clk 0:01:27.5]} 26. Qa3
{[%clk 0:01:57.7]} 26... h5 {[%clk 0:01:22.9]} 27. Qa1 {[%clk 0:01:51.4]} 27...
Qxa1 {[%clk 0:01:13]} 28. Rxa1 {[%clk 0:01:52.3]} 28... Rc8 {[%clk 0:01:11.8]}
29. Nd4 {[%clk 0:01:51.7]} 29... Rc4 {[%clk 0:01:11]} 30. b5 {[%clk 0:01:48.8]}
30... Rb4 {[%clk 0:01:09.3]} 31. f3 {[%clk 0:01:42.2]} 31... Nd6 {[%clk
0:01:05.6]} 32. Ra6 {[%clk 0:01:37.3]} 32... Nc4 {[%clk 0:00:59.4]} 33. Ra8+
{[%clk 0:01:27.5]} 33... Kg7 {[%clk 0:00:59.4]} 34. Ra7 {[%clk 0:01:28.2]} 34...
Nxe3 {[%clk 0:00:51.6]} 35. Ne6+ {[%clk 0:01:27.9]} 35... Kf6 {[%clk 0:00:51.5]}
36. Nd8 {[%clk 0:01:24.7]} 36... Rxb5 {[%clk 0:00:45.7]} 37. f4 {[%clk 0:01:19]}
37... Kf5 {[%clk 0:00:44.7]} 38. Rxf7+ {[%clk 0:01:15.8]} 38... Ke4 {[%clk
0:00:45]} 39. Re7+ {[%clk 0:01:06.7]} 39... Kxf4 {[%clk 0:00:44.4]} 40. Ne6+
{[%clk 0:01:06.8]} 40... Kg3 {[%clk 0:00:44.4]} 0-1

[Event "*** Titled Tuesday Blitz"]
[Site "Chess.com"]
[Date "2020.12.01"]
[Round "4"]
[White "Artyom_ChessMate"]
[Black "kirillshevchenko"]
[Result "1-0"]
[WhiteElo "2552"]
[BlackElo "2851"]
[TimeControl "180+1"]
[EndTime "10:37:17 PST"]
[Termination "Artyom_ChessMate won by resignation"]

1. e4 {[%clk 0:03:00.9]} 1... c5 {[%clk 0:02:57]} 2. Nc3 {[%clk 0:03:00.9]} 2...
Nc6 {[%clk 0:02:56.3]} 3. Bb5 {[%clk 0:03:00.5]} 3... Nd4 {[%clk 0:02:56.1]} 4.
Nf3 {[%clk 0:03:01]} 4... a6 {[%clk 0:02:54.7]} 5. Bd3 {[%clk 0:03:00.6]} 5...
Nc6 {[%clk 0:02:51.4]} 6. O-O {[%clk 0:02:52.4]} 6... e6 {[%clk 0:02:48.1]} 7.
b3 {[%clk 0:02:51]} 7... g5 {[%clk 0:02:41.7]} 8. h3 {[%clk 0:02:44.4]} 8... h5
{[%clk 0:02:38.8]} 9. Bb2 {[%clk 0:02:44.4]} 9... g4 {[%clk 0:02:33.9]} 10. Nh2
{[%clk 0:02:19.7]} 10... Bg7 {[%clk 0:02:21.4]} 11. hxg4 {[%clk 0:02:12.4]}
11... hxg4 {[%clk 0:02:11.9]} 12. Qxg4 {[%clk 0:02:11.9]} 12... Qf6 {[%clk
0:01:27.2]} 13. Nd1 {[%clk 0:01:18.7]} 13... Ne5 {[%clk 0:01:18]} 14. Qg3 {[%clk
0:01:13.7]} 14... Qh6 {[%clk 0:00:45.2]} 15. Bxe5 {[%clk 0:01:05.6]} 15... Bxe5
{[%clk 0:00:39.4]} 16. Qxe5 {[%clk 0:01:06.5]} 16... Nf6 {[%clk 0:00:40.1]} 17.
Ne3 {[%clk 0:01:02.5]} 17... Kd8 {[%clk 0:00:32.6]} 18. f3 {[%clk 0:00:40.1]}
18... Qg6 {[%clk 0:00:18.2]} 19. Neg4 {[%clk 0:00:36.9]} 1-0

[Event "*** Titled Tuesday Blitz"]
[Site "Chess.com"]
[Date "2020.12.01"]
[Round "4"]
[White "BJthechessgod"]
[Black "Anna_ChessMate"]
[Result "1-0"]
[WhiteElo "2309"]
[BlackElo "2562"]
[TimeControl "180+1"]
[EndTime "10:37:19 PST"]
[Termination "BJthechessgod won by checkmate"]

1. e4 {[%clk 0:03:00.9]} 1... c6 {[%clk 0:02:55.8]} 2. d4 {[%clk 0:02:57.3]}
2... d5 {[%clk 0:02:56]} 3. Nc3 {[%clk 0:02:57.2]} 3... dxe4 {[%clk 0:02:55.7]}
4. Nxe4 {[%clk 0:02:56]} 4... Bf5 {[%clk 0:02:56.4]} 5. Ng3 {[%clk 0:02:55.6]}
5... Bg6 {[%clk 0:02:56.1]} 6. h4 {[%clk 0:02:55.2]} 6... h6 {[%clk 0:02:55.7]}
7. Nf3 {[%clk 0:02:51.1]} 7... e6 {[%clk 0:02:54.8]} 8. Ne5 {[%clk 0:02:50]}
8... Bh7 {[%clk 0:02:54.5]} 9. Bc4 {[%clk 0:02:50.2]} 9... Nd7 {[%clk 0:02:27]}
10. Bf4 {[%clk 0:02:46.2]} 10... Nxe5 {[%clk 0:02:26.3]} 11. Bxe5 {[%clk
0:02:45.3]} 11... Nf6 {[%clk 0:02:23.1]} 12. Qe2 {[%clk 0:02:40.4]} 12... Qb6
{[%clk 0:02:19.2]} 13. O-O-O {[%clk 0:02:39.6]} 13... O-O-O {[%clk 0:02:19.6]}
14. Bd3 {[%clk 0:02:32.5]} 14... Bxd3 {[%clk 0:02:16.8]} 15. Rxd3 {[%clk
0:02:30.5]} 15... Nd5 {[%clk 0:02:16]} 16. Rb3 {[%clk 0:02:25.9]} 16... Qa5
{[%clk 0:02:14.6]} 17. Kb1 {[%clk 0:02:25.2]} 17... f6 {[%clk 0:02:00.1]} 18. c4
{[%clk 0:02:21.7]} 18... Nb6 {[%clk 0:00:56.9]} 19. Bf4 {[%clk 0:02:14.5]} 19...
Re8 {[%clk 0:00:28.7]} 20. Ne4 {[%clk 0:02:08.1]} 20... Qf5 {[%clk 0:00:23.6]}
21. Rf3 {[%clk 0:01:57.3]} 21... Qh7 {[%clk 0:00:15.8]} 22. Ka1 {[%clk
0:01:56.6]} 22... Rd8 {[%clk 0:00:16.4]} 23. Rd1 {[%clk 0:01:54.9]} 23... e5
{[%clk 0:00:13.3]} 24. Bh2 {[%clk 0:01:45.2]} 24... exd4 {[%clk 0:00:12.5]} 25.
c5 {[%clk 0:01:38.1]} 25... Nd5 {[%clk 0:00:13.1]} 26. Bd6 {[%clk 0:01:33.5]}
26... Bxd6 {[%clk 0:00:12.9]} 27. Nxd6+ {[%clk 0:01:34.4]} 27... Kc7 {[%clk
0:00:11.6]} 28. Rxd4 {[%clk 0:01:30.2]} 28... b6 {[%clk 0:00:06.5]} 29. Qa6
{[%clk 0:01:27.3]} 29... Ra8 {[%clk 0:00:04.6]} 30. Qb7+ {[%clk 0:01:25.2]}
30... Kd8 {[%clk 0:00:05.4]} 31. Qxc6 {[%clk 0:01:23.4]} 31... Nc7 {[%clk
0:00:04.7]} 32. Nf5+ {[%clk 0:01:20.6]} 32... Kc8 {[%clk 0:00:05.3]} 33. Ne7+
{[%clk 0:01:19.9]} 33... Kb8 {[%clk 0:00:06]} 34. cxb6 {[%clk 0:01:18.7]} 34...
Qc2 {[%clk 0:00:06.5]} 35. bxc7# {[%clk 0:01:17.3]} 1-0

[Event "*** Titled Tuesday Blitz"]
[Site "Chess.com"]
[Date "2020.12.01"]
[Round "4"]
[White "Agibileg"]
[Black "Fandorine"]
[Result "0-1"]
[WhiteElo "2534"]
[BlackElo "2851"]
[TimeControl "180+1"]
[EndTime "10:37:20 PST"]
[Termination "Fandorine won by resignation"]

1. d4 {[%clk 0:03:00.8]} 1... Nf6 {[%clk 0:02:59.7]} 2. c4 {[%clk 0:03:01.4]}
2... e6 {[%clk 0:02:59.8]} 3. Nc3 {[%clk 0:03:01.9]} 3... Bb4 {[%clk 0:02:59.5]}
4. Qc2 {[%clk 0:03:02.4]} 4... Nc6 {[%clk 0:02:55.7]} 5. Nf3 {[%clk 0:03:00.9]}
5... d6 {[%clk 0:02:55.2]} 6. Bd2 {[%clk 0:02:55.2]} 6... Qe7 {[%clk 0:02:53.2]}
7. a3 {[%clk 0:02:53.2]} 7... Bxc3 {[%clk 0:02:52.5]} 8. Bxc3 {[%clk 0:02:53.5]}
8... O-O {[%clk 0:02:52.7]} 9. e3 {[%clk 0:02:53]} 9... e5 {[%clk 0:02:51.9]}
10. d5 {[%clk 0:02:53.2]} 10... Nb8 {[%clk 0:02:46.9]} 11. Be2 {[%clk
0:02:51.8]} 11... a5 {[%clk 0:02:47.4]} 12. b3 {[%clk 0:02:51.5]} 12... Bg4
{[%clk 0:02:47.2]} 13. O-O {[%clk 0:02:48.6]} 13... Bh5 {[%clk 0:02:47.2]} 14.
b4 {[%clk 0:02:47.2]} 14... Bg6 {[%clk 0:02:46.9]} 15. Qb2 {[%clk 0:02:37.1]}
15... Ne4 {[%clk 0:02:44.9]} 16. Nd2 {[%clk 0:02:19.8]} 16... Nxc3 {[%clk
0:02:33.4]} 17. Qxc3 {[%clk 0:02:20.7]} 17... Nd7 {[%clk 0:02:34.3]} 18. bxa5
{[%clk 0:02:12.7]} 18... f5 {[%clk 0:02:14.4]} 19. Rab1 {[%clk 0:02:05.1]} 19...
Ra7 {[%clk 0:02:13.2]} 20. Bd3 {[%clk 0:01:58.1]} 20... e4 {[%clk 0:01:55.9]}
21. Be2 {[%clk 0:01:52.8]} 21... Qe5 {[%clk 0:01:55.6]} 22. Qxe5 {[%clk
0:01:28.3]} 22... Nxe5 {[%clk 0:01:55.9]} 23. Rb5 {[%clk 0:01:23.5]} 23... Be8
{[%clk 0:01:50.1]} 24. Rb4 {[%clk 0:01:17.4]} 24... Bd7 {[%clk 0:01:48.6]} 25.
Rfb1 {[%clk 0:01:16.3]} 25... Rxa5 {[%clk 0:01:22.3]} 26. Rxb7 {[%clk
0:01:15.6]} 26... Rxa3 {[%clk 0:01:22.8]} 27. Rxc7 {[%clk 0:01:14.5]} 27... Ra2
{[%clk 0:01:22.9]} 28. Rd1 {[%clk 0:01:10.8]} 28... Ba4 {[%clk 0:01:22.5]} 29.
Ra7 {[%clk 0:01:07.7]} 29... Bxd1 {[%clk 0:01:21.7]} 30. Rxa2 {[%clk 0:01:06.3]}
30... Bxe2 {[%clk 0:01:22.2]} 31. Nxe4 {[%clk 0:00:58.4]} 31... Bxc4 {[%clk
0:01:20.9]} 32. Rc2 {[%clk 0:00:53.9]} 32... fxe4 {[%clk 0:01:21]} 33. h4 {[%clk
0:00:48.3]} 33... h6 {[%clk 0:01:16.8]} 34. Kh2 {[%clk 0:00:43.8]} 34... Bxd5
{[%clk 0:01:16.4]} 35. Rd2 {[%clk 0:00:42.7]} 35... Nd3 {[%clk 0:01:16.3]} 36.
Kg3 {[%clk 0:00:41.3]} 36... Rf6 {[%clk 0:01:10.8]} 37. h5 {[%clk 0:00:38.7]}
37... Rf5 {[%clk 0:01:10.4]} 38. f4 {[%clk 0:00:39.1]} 38... exf3 {[%clk
0:01:08.6]} 39. Rxd3 {[%clk 0:00:39.6]} 39... fxg2 {[%clk 0:01:09]} 40. Rd1
{[%clk 0:00:38.9]} 40... Rf1 {[%clk 0:01:08.9]} 0-1

[Event "*** Titled Tuesday Blitz"]
[Site "Chess.com"]
[Date "2020.12.01"]
[Round "4"]
[White "PotapovaM"]
[Black "theturtlemoves"]
[Result "0-1"]
[WhiteElo "2591"]
[BlackElo "2403"]
[TimeControl "180+1"]
[EndTime "10:37:21 PST"]
[Termination "theturtlemoves won by checkmate"]

1. d4 {[%clk 0:03:00.9]} 1... d5 {[%clk 0:02:59.5]} 2. c4 {[%clk 0:03:00.8]}
2... e6 {[%clk 0:02:59.7]} 3. Nc3 {[%clk 0:03:00.2]} 3... a6 {[%clk 0:02:59.8]}
4. Nf3 {[%clk 0:02:58.6]} 4... Nf6 {[%clk 0:02:59.3]} 5. cxd5 {[%clk 0:02:58.7]}
5... exd5 {[%clk 0:03:00.2]} 6. Bg5 {[%clk 0:02:59.2]} 6... Be6 {[%clk
0:03:00.6]} 7. Qb3 {[%clk 0:02:58.3]} 7... Nbd7 {[%clk 0:02:58.1]} 8. e3 {[%clk
0:02:53.6]} 8... Rb8 {[%clk 0:02:56.6]} 9. Be2 {[%clk 0:02:50.2]} 9... Bd6
{[%clk 0:02:56.3]} 10. O-O {[%clk 0:02:49.7]} 10... O-O {[%clk 0:02:54.8]} 11.
Bf4 {[%clk 0:02:48.8]} 11... Qe7 {[%clk 0:02:46.8]} 12. Bg3 {[%clk 0:02:48.6]}
12... Bxg3 {[%clk 0:02:11.6]} 13. hxg3 {[%clk 0:02:49.5]} 13... Qd6 {[%clk
0:02:12.1]} 14. Rac1 {[%clk 0:02:46.2]} 14... Rfe8 {[%clk 0:02:00.7]} 15. Rfd1
{[%clk 0:02:45.8]} 15... c6 {[%clk 0:01:57.6]} 16. Qc2 {[%clk 0:02:44.1]} 16...
Bg4 {[%clk 0:01:51.9]} 17. a3 {[%clk 0:02:40.6]} 17... Re7 {[%clk 0:01:36.9]}
18. b4 {[%clk 0:02:38.1]} 18... Rbe8 {[%clk 0:01:37]} 19. Na4 {[%clk 0:02:29.2]}
19... Ne4 {[%clk 0:01:19.9]} 20. Bf1 {[%clk 0:02:19.8]} 20... Qh6 {[%clk
0:01:02.1]} 21. Re1 {[%clk 0:02:10.3]} 21... Ndf6 {[%clk 0:00:39.2]} 22. Ne5
{[%clk 0:02:08.5]} 22... Rxe5 {[%clk 0:00:33.2]} 23. dxe5 {[%clk 0:02:06.9]}
23... Rxe5 {[%clk 0:00:32]} 24. f3 {[%clk 0:01:29]} 24... Rh5 {[%clk 0:00:28.3]}
25. fxe4 {[%clk 0:01:27.3]} 25... Nxe4 {[%clk 0:00:20.7]} 26. Qxe4 {[%clk
0:01:26.2]} 26... dxe4 {[%clk 0:00:19.9]} 27. Red1 {[%clk 0:00:55.9]} 27...
Qxe3# {[%clk 0:00:17]} 0-1

[Event "*** Titled Tuesday Blitz"]
[Site "Chess.com"]
[Date "2020.12.01"]
[Round "4"]
[White "BAS8892"]
[Black "szachuspl"]
[Result "1-0"]
[WhiteElo "2717"]
[BlackElo "2493"]
[TimeControl "180+1"]
[EndTime "10:37:22 PST"]
[Termination "BAS8892 won by resignation"]

1. d4 {[%clk 0:03:00.1]} 1... Nf6 {[%clk 0:02:59.2]} 2. c4 {[%clk 0:03:00]} 2...
g6 {[%clk 0:02:58.9]} 3. Nc3 {[%clk 0:02:59.6]} 3... Bg7 {[%clk 0:02:59.4]} 4.
e4 {[%clk 0:02:59.6]} 4... d6 {[%clk 0:02:59.5]} 5. f4 {[%clk 0:02:58.6]} 5...
O-O {[%clk 0:02:57.4]} 6. Nf3 {[%clk 0:02:58.8]} 6... c5 {[%clk 0:02:57.7]} 7.
d5 {[%clk 0:02:59.1]} 7... b5 {[%clk 0:02:57]} 8. cxb5 {[%clk 0:02:58.6]} 8...
a6 {[%clk 0:02:57.2]} 9. a4 {[%clk 0:02:56.6]} 9... axb5 {[%clk 0:02:54]} 10.
Bxb5 {[%clk 0:02:56.6]} 10... Ba6 {[%clk 0:02:50]} 11. Qe2 {[%clk 0:02:56]}
11... Qa5 {[%clk 0:02:39.8]} 12. O-O {[%clk 0:02:51.2]} 12... Bxb5 {[%clk
0:02:30.6]} 13. Nxb5 {[%clk 0:02:50.5]} 13... Na6 {[%clk 0:02:26.5]} 14. Bd2
{[%clk 0:02:48.9]} 14... Nb4 {[%clk 0:02:26]} 15. Bc3 {[%clk 0:02:48.9]} 15...
Nd7 {[%clk 0:02:16.7]} 16. Bxg7 {[%clk 0:02:47]} 16... Kxg7 {[%clk 0:02:17.6]}
17. b3 {[%clk 0:02:46.7]} 17... Rfc8 {[%clk 0:02:12.7]} 18. Rac1 {[%clk
0:02:41.3]} 18... Rab8 {[%clk 0:02:06.3]} 19. Nd2 {[%clk 0:02:40.8]} 19... Nb6
{[%clk 0:02:01.2]} 20. Nc4 {[%clk 0:02:39.8]} 20... Nxc4 {[%clk 0:01:57.7]} 21.
Qxc4 {[%clk 0:02:39.8]} 21... Qd8 {[%clk 0:01:52.4]} 22. Rcd1 {[%clk 0:02:38]}
22... Kg8 {[%clk 0:01:51.5]} 23. e5 {[%clk 0:02:36.9]} 23... Qd7 {[%clk
0:01:51.2]} 24. exd6 {[%clk 0:02:35.8]} 24... exd6 {[%clk 0:01:51.1]} 25. f5
{[%clk 0:02:36.2]} 25... Re8 {[%clk 0:01:46.4]} 26. Qf4 {[%clk 0:02:35.9]} 26...
Re5 {[%clk 0:01:42.4]} 27. f6 {[%clk 0:02:34]} 27... Kh8 {[%clk 0:01:12.7]} 28.
Rf3 {[%clk 0:02:27.5]} 28... g5 {[%clk 0:01:09.7]} 29. Qc4 {[%clk 0:02:17.3]}
29... Rbe8 {[%clk 0:01:07.6]} 30. Rff1 {[%clk 0:01:59.8]} 30... Re4 {[%clk
0:01:07.6]} 31. Qc3 {[%clk 0:01:59.3]} 31... R8e5 {[%clk 0:01:06.8]} 32. h3
{[%clk 0:01:44.9]} 32... h6 {[%clk 0:01:06.6]} 33. Qf3 {[%clk 0:01:30.4]} 33...
Re3 {[%clk 0:01:04.4]} 34. Qh5 {[%clk 0:01:30.1]} 34... Kh7 {[%clk 0:01:01.7]}
35. Nxd6 {[%clk 0:01:29.9]} 35... g4 {[%clk 0:00:50.1]} 36. Qxf7+ {[%clk
0:01:29.7]} 36... Qxf7 {[%clk 0:00:49.9]} 37. Nxf7 {[%clk 0:01:30.6]} 37... Rxd5
{[%clk 0:00:48.7]} 38. Rxd5 {[%clk 0:01:27.2]} 38... Nxd5 {[%clk 0:00:49.6]} 39.
hxg4 {[%clk 0:01:24.9]} 39... Kg6 {[%clk 0:00:45.9]} 40. Nh8+ {[%clk 0:01:23.8]}
1-0